Workbook

Sheet Sheet1
A1: Standard Conc | B1: Absorbance
A2: 0 | B2: =(2*A2+RAND()/10)/10 -> 0.009327850381 | C2: =IF(A2="",IF(B2<>"",(B2-F$30)/E$30,""),"") -> 
A3: 1 | B3: =(2*A3+RAND()/10)/10 -> 0.2008259635 | C3: =IF(A3="",IF(B3<>"",(B3-F$30)/E$30,""),"") -> 
A4: 2 | B4: 0.4014147809
A5: 3 | B5: 0.6077656879
B6: 0.15 | C6: 0.724242748
E29: m | F29: b | G29: sy | H29: average | I29: sx | J29: table t (95%) | K29: t sx
E30: =SLOPE(B2:B35,A2:A35) -> 0.199590233 | F30: =INTERCEPT(B2:B35,A2:A35) -> 0.005448221188 | G30: =STEYX(B2:B35,A2:A35) -> 0.005277563606 | H30: =AVERAGE(C2:C32) -> 0.724242748 | I30: =G30/ABS(E30)*SQRT(1/H32+(I32*H30^2+SUMSQ(A2:A35)-2*H30*SUM(A2:A35))/G32) -> 0.03095362422 | J30: =TINV(0.05,COUNT(A2:A35)-2) -> 4.30265273 | K30: =J30*I30 -> 0.1331826958
E31: sm | F31: sb | G31: D | H31: k | I31: N | J31: DF
E32: =G30*SQRT(I32/G32) -> 0.002360198196 | F32: =G30*SQRT(SUMSQ(A2:A35)/G32) -> 0.004415526506 | G32: =VARP(A2:A35)*I32^2 -> 20 | H32: =COUNT(C2:C32) -> 1 | I32: =COUNT(A2:A35) -> 4 | J32: =COUNT(A2:A35)-2 -> 2
G33: Dilution and unit conversion factor | H33: average | I33: sx | J33: table t (95%) | K33: t sx
G34: 25 | H34: =H30*G34 -> 18.1060687 | I34: =I30/H30*H34 -> 0.7738406056 | J34: =J30 -> 4.30265273 | K34: =J34*I34 -> 3.329567394

Sheet Sheet2
A1: Standard Conc | B1: Absorbance | C1: Sample conc
A2: 0 | B2: =(2*A2+RAND()/10)/10 -> 0.001136374847 | C2: =IF(A2="",IF(B2<>"",(B2-F$30)/E$30,""),"") -> 
A3: 1 | B3: =(2*A3+RAND()/10)/10 -> 0.2071290203 | C3: =IF(A3="",IF(B3<>"",(B3-F$30)/E$30,""),"") -> 
A4: 2 | B4: 0.4006668511
A5: 3 | B5: 0.607929621
B6: 0.15 | C6: 0.734251346
E29: m | F29: b | G29: sy | H29: average | I29: sx | J29: table t (95%) | K29: t sx
E30: =SLOPE(B2:B35,A2:A35) -> 0.2013917569 | F30: =INTERCEPT(B2:B35,A2:A35) -> 0.002127831404 | G30: =STEYX(B2:B35,A2:A35) -> 0.004163669012 | H30: =AVERAGE(C2:C32) -> 0.734251346 | I30: =G30/ABS(E30)*SQRT(1/H32+(I32*H30^2+SUMSQ(A2:A35)-2*H30*SUM(A2:A35))/G32) -> 0.02417476812 | J30: =TINV(0.05,COUNT(A2:A35)-2) -> 4.30265273 | K30: =J30*I30 -> 0.104015632
E31: sm | F31: sb | G31: D | H31: k | I31: N | J31: DF
E32: =G30*SQRT(I32/G32) -> 0.001862049389 | F32: =G30*SQRT(SUMSQ(A2:A35)/G32) -> 0.003483575426 | G32: =VARP(A2:A35)*I32^2 -> 20 | H32: =COUNT(C2:C32) -> 1 | I32: =COUNT(A2:A35) -> 4 | J32: =COUNT(A2:A35)-2 -> 2
G33: Dilution and unit conversion factor | H33: average | I33: sx | J33: table t (95%) | K33: t sx
G34: 25 | H34: =H30*G34 -> 18.35628365 | I34: =I30/H30*H34 -> 0.6043692029 | J34: =J30 -> 4.30265273 | K34: =J34*I34 -> 2.600390801
H35: known | I35: t-test
H36: 18 | I36: =IF(H36<>"",ABS((H34-H36)/I34),"") -> 0.5895132453

Sheet Sheet3
A1: Standard Conc | B1: Absorbance | C1: Sample conc
A2: 0 | B2: =(2*A2+RAND()/10)/10 -> 0.001610305237 | C2: =IF(A2="",IF(B2<>"",(B2-F$30)/E$30,""),"") -> 
A3: 1 | B3: =(2*A3+RAND()/10)/10 -> 0.2048854762 | C3: =IF(A3="",IF(B3<>"",(B3-F$30)/E$30,""),"") -> 
A4: 2 | B4: 0.4038558984
A5: 3 | B5: 0.6042255814
B6: 0.15 | C6: 0.7343877261
E29: m | F29: b | G29: sy | H29: average | I29: sx | J29: table t (95%) | K29: t sx
E30: =SLOPE(B2:B35,A2:A35) -> 0.2006816251 | F30: =INTERCEPT(B2:B35,A2:A35) -> 0.002621877709 | G30: =STEYX(B2:B35,A2:A35) -> 0.00136697684 | H30: =AVERAGE(C2:C32) -> 0.7343877261 | I30: =G30/ABS(E30)*SQRT(1/H32+(I32*H30^2+SUMSQ(A2:A35)-2*H30*SUM(A2:A35))/G32) -> 0.007964797215 | J30: =TINV(0.05,COUNT(A2:A35)-2) -> 4.30265273 | K30: =J30*I30 -> 0.03426975648
E31: sm | F31: sb | G31: D | H31: k | I31: N | J31: DF
E32: =G30*SQRT(I32/G32) -> 0.0006113306275 | F32: =G30*SQRT(SUMSQ(A2:A35)/G32) -> 0.001143694879 | G32: =VARP(A2:A35)*I32^2 -> 20 | H32: =COUNT(C2:C32) -> 1 | I32: =COUNT(A2:A35) -> 4 | J32: =COUNT(A2:A35)-2 -> 2
G33: Dilution and unit conversion factor | H33: average | I33: sx | J33: table t (95%) | K33: t sx
G34: 25 | H34: =H30*G34 -> 18.35969315 | I34: =I30/H30*H34 -> 0.1991199304 | J34: =J30 -> 4.30265273 | K34: =J34*I34 -> 0.856743912
H35: known | I35: t-test
H36: 18 | I36: =IF(H36<>"",ABS((H34-H36)/I34),"") -> 1.806414615
